[Event "94th FRA-ch Open B 2019"]
[Site "Chartres"]
[Date "2019.08.21"]
[Round "5.3"]
[White "Bosc, Gabriel"]
[Black "Maugin, Narada"]
[Result "1-0"]
[ECO "A02"]
[WhiteElo "1893"]
[BlackElo "1820"]
[Annotator "NA"]
[PlyCount "112"]
[EventDate "2019.08.17"]
[EventType "swiss"]
[EventCountry "FRA"]
[SourceTitle "playchess.com"]
[Source "ChessBase"]
[SourceQuality "1"]
[TimeControl "40/5400+30:1800+30"]

1. f4 {[%emt 0:00:00]} e5 {[%emt 1:30:30]} 2. fxe5 {[%emt 0:00:00]} d6 {[%emt 0:00:08]} 3. exd6 {[%emt 0:00:53]} Bxd6 {[%emt 1:31:05]} 4. Nf3 {[%emt 0:00:12]} g5 {[%emt 0:00:12]} 5. g3 {[%emt 0:00:14]} g4 {[%emt 0:00:12]} 6. Nh4 {[%emt 0:00:05]} Ne7 {[%emt 0:00:14]} 7. e4 {[%emt 0:03:10]} Ng6 {[%emt 0:03:48]} 8. Nf5 {[%emt 0:00:45]} Bxf5 {[%emt 0:01:22]} 9. exf5 {[%emt 0:00:04]} Qe7+ {[%emt 0:04:17]} 10. Be2 {[%emt 0:04:59]} Ne5 {[%emt 0:00:19]} 11. d4 {[%emt 0:13:32]} Nf3+ {[%emt 1:24:33]} 12. Kf1 {[%emt 0:00:06]} Nc6 {[%emt 0:07:25]} 13. c3 {[%emt 0:01:10]} O-O-O {[%emt 0:15:09]} 14. Bxf3 {[%emt 0:03:20]} gxf3 {[%emt 0:00:07]} 15. Nd2 {[%emt 0:02:03]} Rde8 {[%emt 0:01:56]} 16. Nxf3 {[%emt 0:01:30]} Qe4 {[%emt 0:01:24]} 17. Kg2 {[%emt 0:13:57]} Qxf5 {[%emt 0:03:53]} 18. Re1 {[%emt 0:04:07]} Reg8 {[%emt 0:11:16]} 19. Nh4 {[%emt 0:08:17]} Qf6 {[%emt 0:01:50]} 20. Qh5 {[%emt 0:02:22]} Ne7 {[%emt 0:04:06]} 21. Rf1 {[%emt 0:14:17]} Qe6 {[%emt 0:02:33]} 22. Nf5 {[%emt 0:06:13]} Nxf5 {[%emt 0:10:40]} 23. Qxf5 {[%emt 0:00:12]} Qxf5 {[%emt 0:00:16]} 24. Rxf5 {[%emt 0:00:05]} Re8 {[%emt 0:00:31]} 25. Kf2 {[%emt 0:03:49]} Re7 {[%emt 0:04:12]} 26. Bg5 {[%emt 0:00:32]} f6 {[%emt 0:02:26]} 27. Bd2 {[%emt 0:00:59]} h5 {[%emt 0:01:22]} 28. Re1 {[%emt 0:02:35]} Rxe1 {[%emt 0:03:43]} 29. Bxe1 {[%emt 0:00:19]} h4 {[%emt 0:02:21]} 30. Kg2 {[%emt 0:15:13]} hxg3 {[%emt 0:01:16]} 31. hxg3 {[%emt 0:00:08]} Rh6 {[%emt 0:01:04]} 32. Bd2 {[%emt 0:02:54]} Rg6 {[%emt 0:00:20]} 33. Rf3 {[%emt 0:00:03]} Kd7 {[%emt 0:00:47]} 34. c4 {[%emt 0:00:25]} c6 {[%emt 0:01:33]} 35. Rb3 {[%emt 0:01:42]} b6 {[%emt 0:01:14]} 36. Rf3 {[%emt 0:00:11]} Ke6 {[%emt 0:00:32]} 37. Be1 {[%emt 0:03:10]} f5 {[%emt 0:03:04]} 38. Re3+ {[%emt 0:00:35]} Kd7 {[%emt 0:08:13]} 39. Kf3 {[%emt 0:00:46]} Rg4 {[%emt 0:01:30]} 40. Rd3 {[%emt 0:00:25]} Ke6 {[%emt 0:03:08]} 41. Bf2 {[%emt 0:31:19]} Kf6 {[%emt 0:10:18]} 42. Rd1 {[%emt 0:00:00]} Kf7 {[%emt 0:06:35]} 43. Rh1 {[%emt 0:00:00]} Be7 {[%emt 0:02:06]} 44. Rh7+ {[%emt 0:00:00]} Ke6 {[%emt 0:00:37]} 45. Rh8 {[%emt 0:10:12]} Bf6 {[%emt 0:00:27]} 46. Rh6 {[%emt 0:10:42]} Kf7 {[%emt 0:01:09]} 47. Rh7+ {[%emt 0:00:00]} Bg7 {[%emt 0:01:01]} 48. Rh4 {[%emt 0:00:00]} Rg6 {[%emt 0:00:56]} 49. b3 {[%emt 0:00:00]} Bf6 {[%emt 0:01:12]} 50. Rh7+ {[%emt 0:00:00]} Bg7 {[%emt 0:00:04]} 51. Be3 {[%emt 0:00:00]} Ke6 {[%emt 0:01:40]} 52. Bf4 {[%emt 0:00:00]} Bxd4 {[%emt 0:01:46]} 53. Rxa7 {[%emt 0:00:00]} Rg7 {[%emt 0:11:25]} 54. Rxg7 {[%emt 0:00:00]} Bxg7 {[%emt 0:00:03]} 55. Ke3 {[%emt 0:00:00]} b5 {[%emt 0:00:26]} 56. a4 {[%emt 0:00:00]} Bf6 {[%emt 0:06:03]} 1-0

[Event "94th FRA-ch Open B 2019"]
[Site "Chartres"]
[Date "2019.08.21"]
[Round "5.4"]
[White "Martin, Axel"]
[Black "Delin, Valere"]
[Result "1/2-1/2"]
[ECO "D00"]
[WhiteElo "1998"]
[BlackElo "1866"]
[Annotator "NA"]
[PlyCount "111"]
[EventDate "2019.08.17"]
[EventType "swiss"]
[EventCountry "FRA"]
[SourceTitle "playchess.com"]
[Source "ChessBase"]
[SourceQuality "1"]
[TimeControl "40/5400+30:1800+30"]

1. d4 {[%emt 0:00:00]} Nf6 {[%emt 0:00:00]} 2. Nc3 {[%emt 0:00:00]} d5 {[%emt 0:00:00]} 3. Bf4 {[%emt 0:00:00]} e6 {[%emt 0:00:31]} 4. Nb5 {[%emt 0:00:00]} Na6 {[%emt 0:00:44]} 5. e3 {[%emt 0:00:00]} c6 {[%emt 0:00:19]} 6. Nc3 {[%emt 0:00:00]} Bd6 {[%emt 0:01:51]} 7. Nf3 {[%emt 0:00:03]} Bxf4 {[%emt 0:10:11]} 8. exf4 {[%emt 0:00:06]} Qa5 {[%emt 0:01:29]} 9. Bd3 {[%emt 0:11:11]} c5 {[%emt 0:04:23]} 10. Bb5+ {[%emt 0:07:13]} Bd7 {[%emt 0:00:25]} 11. a4 {[%emt 0:01:17]} cxd4 {[%emt 0:07:08]} 12. Nxd4 {[%emt 0:05:15]} O-O {[%emt 0:02:03]} 13. O-O {[%emt 0:01:52]} Rac8 {[%emt 0:02:27]} 14. g4 {[%emt 0:07:43]} Rfd8 {[%emt 0:14:49]} 15. g5 {[%emt 0:04:33]} Ne4 {[%emt 0:02:56]} 16. Nxe4 {[%emt 0:04:00]} dxe4 {[%emt 0:00:07]} 17. c3 {[%emt 0:02:33]} Qc7 {[%emt 0:08:03]} 18. Bxd7 {[%emt 0:04:51]} Rxd7 {[%emt 0:00:34]} 19. Qg4 {[%emt 0:01:22]} Rcd8 {[%emt 0:10:02]} 20. Rfe1 {[%emt 0:04:00]} Nc5 {[%emt 0:04:50]} 21. Re3 {[%emt 0:03:44]} Rxd4 {[%emt 0:07:56]} 22. cxd4 {[%emt 0:00:46]} Rxd4 {[%emt 0:00:05]} 23. Rc1 {[%emt 0:11:55]} b6 {[%emt 0:02:12]} 24. f5 {[%emt 0:04:58]} exf5 {[%emt 0:01:42]} 25. Qxf5 {[%emt 0:00:21]} Qd8 {[%emt 0:00:21]} 26. a5 {[%emt 0:02:57]} Rd5 {[%emt 0:02:03]} 27. Qh3 {[%emt 0:03:59]} Rxg5+ {[%emt 0:01:56]} 28. Rg3 {[%emt 0:03:01]} h6 {[%emt 0:00:40]} 29. Qf1 {[%emt 0:05:30]} Nd3 {[%emt 0:01:57]} 30. Rd1 {[%emt 0:01:45]} Rxa5 {[%emt 0:01:39]} 31. Qe2 {[%emt 0:00:56]} Qd4 {[%emt 0:04:08]} 32. Qe3 {[%emt 0:05:26]} Qxe3 {[%emt 0:02:34]} 33. Rxe3 {[%emt 0:00:08]} Nxb2 {[%emt 0:01:59]} 34. Rd8+ {[%emt 0:00:05]} Kh7 {[%emt 0:00:06]} 35. Rxe4 {[%emt 0:00:04]} Rf5 {[%emt 0:01:28]} 36. Rd2 {[%emt 0:01:00]} Rb5 {[%emt 0:00:23]} 37. Re7 {[%emt 0:00:44]} Nc4 {[%emt 0:01:15]} 38. Rd4 {[%emt 0:00:51]} Ne5 {[%emt 0:01:03]} 39. Re4 {[%emt 0:00:41]} Nf3+ {[%emt 0:02:04]} 40. Kg2 {[%emt 0:00:15]} Ng5 {[%emt 0:00:09]} 41. Ra4 {[%emt 0:30:27]} a5 {[%emt 0:01:53]} 42. h4 {[%emt 0:00:00]} Ne6 {[%emt 0:01:21]} 43. Rxf7 {[%emt 0:00:00]} Kg6 {[%emt 0:00:37]} 44. Rf3 {[%emt 0:00:00]} Rf5 {[%emt 0:02:59]} 45. Rc4 {[%emt 0:00:00]} Rxf3 {[%emt 0:09:11]} 46. Kxf3 {[%emt 0:00:00]} Kf5 {[%emt 0:00:14]} 47. Ke3 {[%emt 0:00:00]} b5 {[%emt 0:03:00]} 48. Rc6 {[%emt 0:00:00]} Ke5 {[%emt 0:03:11]} 49. Rb6 {[%emt 0:00:00]} Nd4 {[%emt 0:01:56]} 50. f4+ {[%emt 0:00:00]} Kd5 {[%emt 0:00:05]} 51. h5 {[%emt 0:00:00]} Nf5+ {[%emt 0:02:46]} 52. Kf3 {[%emt 0:00:00]} Nd4+ {[%emt 0:02:49]} 53. Ke3 {[%emt 0:10:58]} b4 {[%emt 0:07:56]} 54. Rb7 {[%emt 0:00:30]} Nf5+ 55. Kf3 Kc4 {[%emt 0:01:00]} 56. Ke4 {[%emt 0:01:00]} 1/2-1/2

[Event "94th FRA-ch Open B 2019"]
[Site "Chartres"]
[Date "2019.08.21"]
[Round "5.5"]
[White "Ferry, Roger"]
[Black "Trouville, Remi"]
[Result "1/2-1/2"]
[ECO "A43"]
[WhiteElo "1853"]
[BlackElo "1991"]
[Annotator "NA"]
[PlyCount "110"]
[EventDate "2019.08.17"]
[EventType "swiss"]
[EventCountry "FRA"]
[SourceTitle "playchess.com"]
[Source "ChessBase"]
[SourceQuality "1"]
[TimeControl "40/5400+30:1800+30"]

1. d4 {[%emt 0:00:00]} Nf6 {[%emt 0:00:00]} 2. Nf3 {[%emt 0:00:00]} c5 {[%emt 0:00:22]} 3. d5 {[%emt 0:00:00]} b5 {[%emt 0:00:30]} 4. a3 {[%emt 0:03:06]} Bb7 {[%emt 1:31:08]} 5. Nc3 {[%emt 0:03:10]} b4 {[%emt 0:10:23]} 6. axb4 {[%emt 0:02:31]} cxb4 {[%emt 0:00:20]} 7. Na4 {[%emt 0:01:04]} Bxd5 {[%emt 0:04:27]} 8. Bg5 {[%emt 0:02:53]} e6 {[%emt 0:02:40]} 9. e3 {[%emt 0:03:04]} h6 {[%emt 0:01:32]} 10. Bh4 {[%emt 0:02:17]} Be7 {[%emt 0:04:43]} 11. Bd3 {[%emt 0:02:52]} O-O {[%emt 0:03:21]} 12. O-O {[%emt 0:00:15]} Bb7 {[%emt 0:01:59]} 13. Qe2 {[%emt 0:04:08]} Nc6 {[%emt 0:05:07]} 14. Rfd1 {[%emt 0:04:25]} Kh8 {[%emt 0:09:22]} 15. c3 {[%emt 0:03:16]} a5 {[%emt 0:11:37]} 16. cxb4 {[%emt 0:04:23]} Nxb4 {[%emt 0:02:49]} 17. Bb5 {[%emt 0:01:28]} d5 {[%emt 0:05:39]} 18. Nc3 {[%emt 0:10:15]} Nh5 {[%emt 0:08:02]} 19. Bxe7 {[%emt 0:09:23]} Qxe7 {[%emt 0:00:10]} 20. Ra4 {[%emt 0:00:48]} Ra7 {[%emt 0:11:57]} 21. Rda1 {[%emt 0:01:40]} Rfa8 {[%emt 0:00:13]} 22. Nd4 {[%emt 0:04:56]} Qg5 {[%emt 0:01:27]} 23. Nf3 {[%emt 0:35:36]} Qe7 {[%emt 0:00:54]} 24. Nd4 {[%emt 0:02:19]} g6 {[%emt 0:01:49]} 25. Nc2 {[%emt 0:05:03]} Nc6 {[%emt 0:02:17]} 26. Nd4 {[%emt 0:04:33]} Nb4 {[%emt 0:01:50]} 27. Nc2 {[%emt 0:01:10]} Nxc2 {[%emt 0:01:30]} 28. Qxc2 {[%emt 0:00:09]} Qc7 {[%emt 0:01:37]} 29. Qd2 {[%emt 0:04:03]} Bc8 {[%emt 0:02:58]} 30. Rc1 {[%emt 0:07:12]} Qd6 {[%emt 0:00:57]} 31. Qd4+ {[%emt 0:02:28]} e5 {[%emt 0:00:31]} 32. Qxd5 {[%emt 0:00:45]} Qxd5 {[%emt 0:00:07]} 33. Nxd5 {[%emt 0:00:11]} Be6 {[%emt 0:00:19]} 34. Nc3 {[%emt 0:01:36]} Rd8 {[%emt 0:00:30]} 35. h3 {[%emt 0:04:51]} Bb3 {[%emt 0:00:36]} 36. Ra3 {[%emt 0:00:41]} Be6 {[%emt 0:00:59]} 37. Rca1 {[%emt 0:00:54]} Rd2 {[%emt 0:01:02]} 38. Rxa5 {[%emt 0:01:18]} Rxa5 {[%emt 0:00:13]} 39. Rxa5 {[%emt 0:00:08]} Rxb2 {[%emt 0:00:13]} 40. Be2 {[%emt 0:01:03]} Nf6 {[%emt 0:00:51]} 41. Bf3 {[%emt 0:31:01]} Kg7 {[%emt 0:02:00]} 42. Ra1 {[%emt 0:00:00]} Rc2 {[%emt 0:01:37]} 43. Ne4 {[%emt 0:00:00]} Nd5 {[%emt 0:05:00]} 44. Bd1 {[%emt 0:00:00]} Rc7 {[%emt 0:01:56]} 45. Bb3 {[%emt 0:00:00]} g5 {[%emt 0:02:56]} 46. Nd2 {[%emt 0:00:00]} Rb7 {[%emt 0:03:31]} 47. Bxd5 {[%emt 0:00:00]} Bxd5 {[%emt 0:00:08]} 48. Rb1 {[%emt 0:00:00]} Rd7 {[%emt 0:01:28]} 49. Nf3 {[%emt 0:05:12]} Bxf3 {[%emt 0:01:07]} 50. gxf3 {[%emt 0:05:42]} Re7 {[%emt 0:01:17]} 51. Rb4 {[%emt 0:00:00]} Kg6 {[%emt 0:02:27]} 52. Kg2 {[%emt 0:00:00]} h5 {[%emt 0:00:48]} 53. Kg3 {[%emt 0:00:00]} Kf5 {[%emt 0:03:42]} 54. Rb6 {[%emt 0:00:00]} Re6 {[%emt 0:03:28]} 55. Rb8 {[%emt 0:00:00]} e4 {[%emt 0:02:54]} 1/2-1/2

[Event "94th FRA-ch Open B 2019"]
[Site "Chartres"]
[Date "2019.08.21"]
[Round "5.6"]
[White "Charon, Olivier"]
[Black "Le Menelec, Erwan-Son"]
[Result "0-1"]
[ECO "B08"]
[WhiteElo "1834"]
[BlackElo "1986"]
[Annotator "NA"]
[PlyCount "98"]
[EventDate "2019.08.17"]
[EventType "swiss"]
[EventCountry "FRA"]
[SourceTitle "playchess.com"]
[Source "ChessBase"]
[SourceQuality "1"]
[TimeControl "40/5400+30:1800+30"]

1. e4 {[%emt 0:00:00]} d6 {[%emt 0:00:00]} 2. d4 {[%emt 0:00:00]} g6 {[%emt 0:00:00]} 3. Nf3 {[%emt 0:01:35]} Bg7 {[%emt 0:00:00]} 4. Bc4 {[%emt 0:02:04]} Nf6 {[%emt 0:00:56]} 5. Nc3 {[%emt 0:00:39]} O-O {[%emt 0:00:09]} 6. O-O {[%emt 0:00:35]} Nxe4 {[%emt 0:03:02]} 7. Bxf7+ {[%emt 0:00:32]} Rxf7 {[%emt 1:29:23]} 8. Nxe4 {[%emt 1:28:35]} h6 {[%emt 0:00:00]} 9. Qd3 {[%emt 0:00:00]} Bf5 {[%emt 0:00:00]} 10. Nh4 {[%emt 0:00:00]} d5 {[%emt 0:00:00]} 11. Nxf5 {[%emt 0:00:00]} dxe4 {[%emt 0:00:00]} 12. Nxh6+ {[%emt 0:00:00]} Bxh6 {[%emt 0:00:00]} 13. Qxe4 {[%emt 0:00:00]} Bg7 {[%emt 0:00:00]} 14. c3 {[%emt 0:00:00]} Nc6 {[%emt 0:00:00]} 15. Qxg6 {[%emt 0:00:00]} e5 {[%emt 0:00:00]} 16. Bg5 {[%emt 0:00:00]} Qd6 {[%emt 0:00:00]} 17. Qxd6 {[%emt 0:00:00]} cxd6 {[%emt 0:00:00]} 18. dxe5 {[%emt 0:00:00]} dxe5 {[%emt 0:00:00]} 19. Rfe1 {[%emt 0:00:00]} Raf8 {[%emt 0:00:00]} 20. f3 {[%emt 0:00:00]} Bf6 {[%emt 0:00:00]} 21. Bh6 {[%emt 0:00:00]} Rd8 {[%emt 0:00:00]} 22. g4 {[%emt 0:00:00]} Bh4 {[%emt 0:00:00]} 23. Rf1 {[%emt 0:00:00]} Rd6 {[%emt 0:00:00]} 24. Be3 {[%emt 0:00:00]} Rd3 {[%emt 0:00:00]} 25. Bf2 {[%emt 0:00:00]} Bxf2+ {[%emt 0:00:00]} 26. Rxf2 {[%emt 0:00:00]} Rdxf3 {[%emt 0:00:00]} 27. Re2 {[%emt 0:00:00]} R7f4 {[%emt 0:00:00]} 28. Kg2 {[%emt 0:00:00]} Rd3 {[%emt 0:00:00]} 29. h3 {[%emt 0:00:00]} Rff3 {[%emt 0:00:00]} 30. Rh1 {[%emt 0:00:00]} Rg3+ {[%emt 0:00:00]} 31. Kf2 {[%emt 0:00:00]} Rdf3+ {[%emt 0:00:05]} 32. Ke1 {[%emt 0:00:00]} Rxh3 {[%emt 0:00:03]} 33. Rxh3 {[%emt 0:00:00]} Rxh3 {[%emt 0:00:04]} 34. Rd2 {[%emt 0:00:00]} Rh1+ {[%emt 0:00:07]} 35. Ke2 {[%emt 0:00:00]} Rh2+ {[%emt 0:00:16]} 36. Ke3 {[%emt 0:00:00]} Rxd2 {[%emt 0:00:02]} 37. Kxd2 {[%emt 0:00:00]} Kf7 {[%emt 0:00:05]} 38. Ke3 {[%emt 0:00:00]} Kf6 {[%emt 0:00:16]} 39. Ke4 {[%emt 0:00:00]} Kg5 {[%emt 0:00:04]} 40. Kf3 {[%emt 0:00:00]} a5 {[%emt 0:05:24]} 41. a4 {[%emt 0:00:00]} b6 {[%emt 0:17:29]} 42. b3 {[%emt 0:00:00]} Kh4 {[%emt 0:00:37]} 43. Ke4 {[%emt 0:00:00]} Kxg4 {[%emt 0:23:28]} 44. b4 {[%emt 0:00:00]} Nxb4 {[%emt 0:00:00]} 45. Kxe5 {[%emt 0:00:00]} Nd3+ {[%emt 0:00:00]} 46. Kd5 {[%emt 0:00:00]} Nb2 {[%emt 0:00:00]} 47. Kc6 {[%emt 0:00:00]} Nxa4 {[%emt 0:00:00]} 48. Kb5 {[%emt 0:00:00]} Nxc3+ {[%emt 0:00:00]} 49. Kc6 {[%emt 0:50:30]} Na4 {[%emt 0:03:00]} 0-1

[Event "94th FRA-ch Open B 2019"]
[Site "Chartres"]
[Date "2019.08.22"]
[Round "6.1"]
[White "Lucbernet, Thomas"]
[Black "Chabaud, Mathis"]
[Result "1/2-1/2"]
[ECO "E11"]
[WhiteElo "1873"]
[BlackElo "1915"]
[Annotator "NA"]
[PlyCount "59"]
[EventDate "2019.08.17"]
[EventType "swiss"]
[EventCountry "FRA"]
[SourceTitle "playchess.com"]
[Source "ChessBase"]
[SourceQuality "1"]
[TimeControl "40/5400+30:1800+30"]

1. d4 {[%emt 0:03:33]} Nf6 {[%emt 0:00:00]} 2. c4 {[%emt 0:00:15]} e6 {[%emt 0:00:06]} 3. g3 {[%emt 0:00:26]} Bb4+ {[%emt 0:01:23]} 4. Bd2 {[%emt 0:00:18]} Qe7 {[%emt 0:00:45]} 5. Bg2 {[%emt 0:06:00]} O-O {[%emt 0:01:27]} 6. Nf3 {[%emt 0:05:40]} Bxd2+ {[%emt 0:01:16]} 7. Nbxd2 {[%emt 0:05:07]} d6 {[%emt 0:00:28]} 8. O-O {[%emt 0:02:11]} e5 {[%emt 0:02:28]} 9. Qb3 {[%emt 0:15:23]} a5 {[%emt 0:07:49]} 10. Qa3 {[%emt 0:03:48]} Nc6 {[%emt 0:05:52]} 11. dxe5 {[%emt 0:10:02]} Nxe5 {[%emt 0:00:36]} 12. e3 {[%emt 0:08:58]} Bg4 {[%emt 0:20:51]} 13. Nxe5 {[%emt 0:07:27]} Qxe5 {[%emt 0:00:08]} 14. h3 {[%emt 0:02:06]} Bd7 {[%emt 0:04:56]} 15. Rac1 {[%emt 0:08:35]} Bc6 {[%emt 0:08:38]} 16. Qc3 {[%emt 0:03:03]} Qe6 {[%emt 0:04:43]} 17. Rfd1 {[%emt 0:02:42]} Rfe8 {[%emt 0:03:17]} 18. Qd4 {[%emt 0:01:54]} Bxg2 {[%emt 0:02:14]} 19. Kxg2 {[%emt 0:12:02]} Nd7 {[%emt 0:05:16]} 20. Nf3 {[%emt 0:00:00]} Nc5 {[%emt 0:01:40]} 21. Ng5 {[%emt 0:00:00]} Qf5 {[%emt 0:04:15]} 22. Nf3 {[%emt 0:00:00]} Re6 {[%emt 0:03:00]} 23. Qd5 {[%emt 0:00:00]} Qxd5 {[%emt 0:04:20]} 24. Rxd5 {[%emt 0:00:00]} f6 {[%emt 0:01:18]} 25. Rc2 {[%emt 0:00:00]} Kf7 {[%emt 0:00:44]} 26. Rd1 {[%emt 0:00:00]} Ree8 {[%emt 0:01:51]} 27. Nd4 {[%emt 0:00:00]} Ne6 {[%emt 0:01:53]} 28. Nf3 {[%emt 0:00:00]} Nc5 {[%emt 0:00:32]} 29. Nd4 {[%emt 0:00:00]} Ne6 {[%emt 0:00:10]} 30. Nf3 {[%emt 0:00:00]} 1/2-1/2

[Event "94th FRA-ch Open B 2019"]
[Site "Chartres"]
[Date "2019.08.22"]
[Round "6.2"]
[White "Partinico, Jeremy"]
[Black "Bosc, Gabriel"]
[Result "1/2-1/2"]
[ECO "B31"]
[WhiteElo "1985"]
[BlackElo "1893"]
[Annotator "NA"]
[PlyCount "160"]
[EventDate "2019.08.17"]
[EventType "swiss"]
[EventCountry "FRA"]
[SourceTitle "playchess.com"]
[Source "ChessBase"]
[SourceQuality "1"]
[TimeControl "40/5400+30:1800+30"]

1. e4 {[%emt 0:00:00]} c5 {[%emt 0:00:00]} 2. Nf3 {[%emt 0:00:00]} Nc6 {[%emt 0:00:00]} 3. Bb5 {[%emt 0:00:00]} g6 {[%emt 0:00:51]} 4. Nc3 {[%emt 0:00:00]} Bg7 {[%emt 0:00:08]} 5. O-O {[%emt 0:00:00]} Nf6 {[%emt 0:01:48]} 6. e5 {[%emt 0:00:02]} Ng4 {[%emt 0:03:11]} 7. Ng5 {[%emt 0:00:30]} Nh6 {[%emt 0:01:31]} 8. f4 {[%emt 0:00:27]} Nd4 {[%emt 0:00:43]} 9. Bc4 {[%emt 0:01:58]} O-O {[%emt 0:00:27]} 10. Ne2 {[%emt 0:07:27]} Nxe2+ {[%emt 0:05:42]} 11. Qxe2 {[%emt 0:00:12]} d5 {[%emt 0:00:14]} 12. exd6 {[%emt 0:04:37]} exd6 {[%emt 0:01:27]} 13. Bd5 {[%emt 0:09:30]} Rb8 {[%emt 0:02:51]} 14. c3 {[%emt 0:07:04]} b5 {[%emt 0:01:00]} 15. Re1 {[%emt 0:12:14]} Bf6 {[%emt 0:03:22]} 16. Ne4 {[%emt 0:00:52]} Bg7 {[%emt 0:01:35]} 17. d3 {[%emt 0:05:31]} Ba6 {[%emt 0:03:42]} 18. a3 {[%emt 0:06:37]} Bb7 {[%emt 1:10:28]} 19. Bxb7 {[%emt 0:05:58]} Rxb7 {[%emt 0:00:00]} 20. Qf3 {[%emt 0:01:58]} Re7 {[%emt 0:00:00]} 21. Be3 {[%emt 0:01:54]} Rfe8 {[%emt 0:00:00]} 22. Rad1 {[%emt 0:02:04]} d5 {[%emt 0:00:00]} 23. Nxc5 {[%emt 0:02:39]} d4 {[%emt 0:00:00]} 24. Bd2 {[%emt 0:02:10]} dxc3 {[%emt 0:00:00]} 25. bxc3 {[%emt 0:02:44]} Rxe1+ {[%emt 0:00:00]} 26. Bxe1 {[%emt 0:02:50]} Qa5 {[%emt 0:00:00]} 27. Qc6 {[%emt 0:01:36]} Re2 {[%emt 0:00:00]} 28. Kf1 {[%emt 0:05:45]} Rc2 {[%emt 0:00:00]} 29. Qc8+ {[%emt 0:05:50]} Bf8 {[%emt 0:00:00]} 30. Nd7 {[%emt 0:00:20]} Qxa3 {[%emt 0:00:00]} 31. Ra1 {[%emt 0:00:16]} Qe7 {[%emt 0:00:00]} 32. Qxf8+ {[%emt 0:00:01]} Qxf8 {[%emt 0:00:00]} 33. Nxf8 {[%emt 0:00:03]} Kxf8 {[%emt 0:00:00]} 34. Rxa7 {[%emt 0:00:16]} Ng4 {[%emt 0:00:00]} 35. Ra1 {[%emt 0:06:59]} Ne3+ {[%emt 0:00:00]} 36. Kg1 {[%emt 0:00:03]} Rxg2+ {[%emt 0:00:00]} 37. Kh1 {[%emt 0:00:03]} Rc2 {[%emt 0:00:00]} 38. h3 {[%emt 0:00:37]} Nd5 {[%emt 0:00:00]} 39. Rb1 {[%emt 0:06:28]} Nxf4 {[%emt 0:00:00]} 40. Bg3 {[%emt 0:00:35]} Ne2 {[%emt 0:00:00]} 41. Bd6+ {[%emt 0:30:32]} Ke8 {[%emt 0:11:58]} 42. Rxb5 {[%emt 0:00:06]} Rxc3 {[%emt 0:02:43]} 43. Re5+ {[%emt 0:00:00]} Kd7 {[%emt 0:00:00]} 44. Bb4 {[%emt 0:00:00]} Rb3 {[%emt 0:00:00]} 45. Bf8 {[%emt 0:00:00]} Nc1 {[%emt 0:00:00]} 46. Re7+ {[%emt 0:00:00]} Kd8 {[%emt 0:00:00]} 47. Rxf7 {[%emt 0:00:00]} Ke8 {[%emt 0:00:00]} 48. Rf3 {[%emt 0:00:00]} Nxd3 {[%emt 0:00:00]} 49. Bh6 {[%emt 0:00:00]} Ke7 {[%emt 0:00:00]} 50. Bg5+ {[%emt 0:00:00]} Ke6 {[%emt 0:00:00]} 51. Kh2 {[%emt 0:00:00]} Nc5 {[%emt 0:00:00]} 52. Rxb3 {[%emt 0:00:00]} Nxb3 {[%emt 0:00:00]} 53. Be3 {[%emt 0:00:00]} Kf5 {[%emt 0:00:00]} 54. Kg3 {[%emt 0:00:00]} Na5 {[%emt 0:00:00]} 55. h4 {[%emt 0:00:00]} h5 {[%emt 0:00:00]} 56. Bg5 {[%emt 0:00:00]} Ke4 {[%emt 0:00:00]} 57. Bd2 {[%emt 0:00:00]} Nc4 {[%emt 0:00:00]} 58. Bf4 {[%emt 0:00:00]} Ne3 {[%emt 0:00:00]} 59. Bg5 {[%emt 0:00:00]} Nf5+ {[%emt 0:00:00]} 60. Kf2 {[%emt 0:00:00]} Nd4 {[%emt 0:00:00]} 61. Kg3 {[%emt 0:00:00]} Ne6 {[%emt 0:01:20]} 62. Be7 {[%emt 0:00:00]} Kf5 {[%emt 0:03:46]} 63. Kf3 {[%emt 0:00:00]} Ke5 {[%emt 0:03:13]} 64. Kg3 {[%emt 0:00:00]} Ke4 {[%emt 0:01:03]} 65. Bf6 {[%emt 0:00:00]} Nc7 {[%emt 0:05:28]} 66. Bd8 {[%emt 0:00:00]} Nd5 {[%emt 0:00:17]} 67. Bg5 {[%emt 0:00:22]} Ne3 {[%emt 0:01:00]} 68. Kf2 {[%emt 0:00:39]} Nf5 {[%emt 0:00:21]} 69. Kg2 {[%emt 0:00:18]} Nd6 {[%emt 0:13:26]} 70. Kg3 {[%emt 0:00:36]} Nc4 {[%emt 0:03:44]} 71. Bf4 {[%emt 0:00:37]} Ne3 {[%emt 0:01:22]} 72. Bg5 {[%emt 0:00:39]} Nc2 {[%emt 0:04:22]} 73. Kf2 {[%emt 0:01:31]} Nd4 {[%emt 0:00:50]} 74. Kg3 {[%emt 0:01:45]} Ne6 {[%emt 0:00:44]} 75. Bf6 {[%emt 0:01:20]} Ke3 {[%emt 0:00:23]} 76. Be7 {[%emt 0:00:36]} Ng7 {[%emt 0:00:40]} 77. Bg5+ {[%emt 0:00:18]} Ke4 {[%emt 0:00:06]} 78. Kf2 {[%emt 0:01:34]} Ne6 {[%emt 0:00:33]} 79. Bh6 {[%emt 0:03:14]} Nd4 {[%emt 0:00:50]} 80. Kg2 {[%emt 0:02:12]} Nc2 {[%emt 0:01:52]} 1/2-1/2

[Event "94th FRA-ch Open B 2019"]
[Site "Chartres"]
[Date "2019.08.22"]
[Round "6.3"]
[White "Le Menelec, Erwan-Son"]
[Black "Tardi, Oscar"]
[Result "1-0"]
[ECO "C41"]
[WhiteElo "1986"]
[BlackElo "1864"]
[Annotator "NA"]
[PlyCount "74"]
[EventDate "2019.08.17"]
[EventType "swiss"]
[EventCountry "FRA"]
[SourceTitle "playchess.com"]
[Source "ChessBase"]
[SourceQuality "1"]
[TimeControl "40/5400+30:1800+30"]

1. e4 {[%emt 0:00:00]} d6 {[%emt 0:00:00]} 2. d4 {[%emt 0:00:00]} Nf6 {[%emt 0:00:00]} 3. Nc3 {[%emt 0:00:00]} e5 {[%emt 0:00:09]} 4. Nf3 {[%emt 0:00:52]} Nbd7 {[%emt 0:02:15]} 5. Bc4 {[%emt 0:00:20]} Be7 {[%emt 0:00:52]} 6. O-O {[%emt 0:00:06]} O-O {[%emt 0:00:06]} 7. Qe2 {[%emt 0:03:52]} c6 {[%emt 0:00:16]} 8. a4 {[%emt 0:00:08]} a5 {[%emt 0:02:05]} 9. h3 {[%emt 0:00:42]} h6 {[%emt 0:06:52]} 10. Be3 {[%emt 0:03:03]} Qc7 {[%emt 0:00:44]} 11. Rad1 {[%emt 0:11:14]} Re8 {[%emt 0:01:10]} 12. Ba2 {[%emt 0:05:02]} Nf8 {[%emt 0:00:38]} 13. Qc4 {[%emt 0:19:44]} Ne6 {[%emt 0:00:25]} 14. d5 {[%emt 0:04:56]} cxd5 {[%emt 0:00:23]} 15. exd5 {[%emt 0:09:52]} Qxc4 {[%emt 0:01:40]} 16. Bxc4 {[%emt 0:00:14]} Nf8 {[%emt 0:00:20]} 17. Nb5 {[%emt 0:01:02]} Bf5 {[%emt 0:00:53]} 18. Nc7 {[%emt 0:04:09]} Bxc2 {[%emt 0:02:18]} 19. Nxe8 {[%emt 0:00:09]} Nxe8 {[%emt 0:00:50]} 20. Ra1 {[%emt 0:00:55]} Bh7 {[%emt 0:02:41]} 21. Rac1 {[%emt 0:02:39]} g5 {[%emt 0:04:42]} 22. Bb5 {[%emt 0:03:45]} Nf6 {[%emt 0:01:11]} 23. Rc7 {[%emt 0:08:33]} Nxd5 {[%emt 0:02:34]} 24. Rxb7 {[%emt 0:00:05]} Nxe3 {[%emt 0:02:49]} 25. fxe3 {[%emt 0:00:36]} Bd8 {[%emt 0:00:56]} 26. Bc4 {[%emt 0:01:37]} Ne6 {[%emt 0:04:14]} 27. Nxe5 {[%emt 0:03:33]} Be4 {[%emt 0:07:04]} 28. Rbxf7 {[%emt 0:03:12]} d5 {[%emt 0:00:12]} 29. Bd3 {[%emt 0:01:32]} Rb8 {[%emt 0:05:08]} 30. Bxe4 {[%emt 0:00:42]} dxe4 {[%emt 0:00:11]} 31. Nc6 {[%emt 0:02:51]} Rc8 {[%emt 0:00:59]} 32. Ne7+ {[%emt 0:00:46]} Bxe7 {[%emt 0:00:40]} 33. Rxe7 {[%emt 0:00:03]} Ng7 {[%emt 0:01:51]} 34. Rxe4 {[%emt 0:00:05]} Rc5 {[%emt 0:02:53]} 35. b4 {[%emt 0:01:34]} axb4 {[%emt 0:00:25]} 36. Rxb4 {[%emt 0:00:03]} Nf5 {[%emt 0:00:06]} 37. Rb5 {[%emt 0:01:13]} Rc6 {[%emt 0:47:58]} 1-0